[Event "The Kvibergspelen 2023"]
[Site "Kviberg Park Hotel & Conference, Krutvagen 2, Gothenburg, Sweden"]
[Date "2023.09.17"]
[Round "8.11"]
[White "Reimanis, Ritvars"]
[Black "Lundstedt, Peter"]
[Result "1-0"]
[TimeControl "15 minutes + 5 seconds per move from move one (Round 1 - 4) / 90 minutes + 30 seconds per move from move one (Round 5 - 8)"]
[WhiteTitle "IM"]
[WhiteFideId "11602988"]
[BlackFideId "1718444"]
[WhiteElo "2361"]
[BlackElo "2099"]

1. d4 {[%clk 01:30:58]} {[%emt 00:00:02]} d5 {[%clk 01:30:54]} {[%emt
00:00:06]} 2. Nf3 {[%clk 01:31:23]} {[%emt 00:00:04]} Nf6 {[%clk 01:31:19]}
{[%emt 00:00:05]} 3. c4 {[%clk 01:31:51]} {[%emt 00:00:03]} e6 {[%clk
01:31:42]} {[%emt 00:00:07]} 4. Nc3 {[%clk 01:32:17]} {[%emt 00:00:04]} Be7
{[%clk 01:32:05]} {[%emt 00:00:06]} 5. Bf4 {[%clk 01:32:41]} {[%emt 00:00:06]}
O-O {[%clk 01:32:27]} {[%emt 00:00:08]} 6. e3 {[%clk 01:33:09]} {[%emt
00:00:02]} Nbd7 {[%clk 01:32:41]} {[%emt 00:00:16]} 7. a3 {[%clk 01:31:38]}
{[%emt 00:02:02]} c5 {[%clk 01:32:57]} {[%emt 00:00:14]} 8. cxd5 {[%clk
01:31:54]} {[%emt 00:00:14]} Nxd5 {[%clk 01:33:06]} {[%emt 00:00:22]} 9. Nxd5
{[%clk 01:32:16]} {[%emt 00:00:08]} exd5 {[%clk 01:33:29]} {[%emt 00:00:05]} 10.
Be2 {[%clk 01:31:38]} {[%emt 00:01:09]} c4 {[%clk 01:29:05]} {[%emt 00:04:53]}
11. O-O {[%clk 01:32:03]} {[%emt 00:00:05]} Nf6 {[%clk 01:29:28]} {[%emt
00:00:08]} 12. b3 {[%clk 01:32:23]} {[%emt 00:00:10]} cxb3 {[%clk 01:26:10]}
{[%emt 00:03:48]} 13. Qxb3 {[%clk 01:32:51]} {[%emt 00:00:02]} Nh5 {[%clk
01:25:06]} {[%emt 00:01:34]} 14. Be5 {[%clk 01:33:07]} {[%emt 00:00:14]} f6
{[%clk 01:24:59]} {[%emt 00:00:36]} 15. Bg3 {[%clk 01:33:24]} {[%emt 00:00:13]}
Nxg3 {[%clk 01:25:01]} {[%emt 00:00:29]} 16. hxg3 {[%clk 01:33:51]} {[%emt
00:00:02]} Rb8 {[%clk 01:20:05]} {[%emt 00:05:26]} 17. Ne1 {[%clk 01:34:15]}
{[%emt 00:00:06]} Be6 {[%clk 01:18:31]} {[%emt 00:02:05]} 18. Nd3 {[%clk
01:34:31]} {[%emt 00:00:13]} Bf7 {[%clk 01:15:50]} {[%emt 00:03:11]} 19. Rfc1
{[%clk 01:34:16]} {[%emt 00:00:46]} Qd7 {[%clk 01:12:55]} {[%emt 00:03:24]} 20.
a4 {[%clk 01:33:46]} {[%emt 00:01:01]} Rfc8 {[%clk 01:12:13]} {[%emt 00:01:11]}
21. Qb5 {[%clk 01:30:39]} {[%emt 00:03:38]} Qd8 {[%clk 01:07:22]} {[%emt
00:05:20]} 22. Rxc8 {[%clk 01:30:13]} {[%emt 00:00:57]} Qxc8 {[%clk 01:07:40]}
{[%emt 00:00:11]} 23. Rc1 {[%clk 01:30:38]} {[%emt 00:00:05]} Qd8 {[%clk
01:07:35]} {[%emt 00:00:36]} 24. Bf3 {[%clk 01:29:43]} {[%emt 00:01:26]} a6
{[%clk 01:05:08]} {[%emt 00:02:56]} 25. Qb3 {[%clk 01:30:08]} {[%emt 00:00:05]}
b5 {[%clk 01:05:29]} {[%emt 00:00:08]} 26. Nf4 {[%clk 01:29:34]} {[%emt
00:01:05]} g5 {[%clk 00:55:45]} {[%emt 00:10:14]} 27. Bxd5 {[%clk 01:27:00]}
{[%emt 00:03:05]} gxf4 {[%clk 00:55:56]} {[%emt 00:00:18]} 28. Bxf7+ {[%clk
01:27:24]} {[%emt 00:00:05]} Kg7 {[%clk 00:56:19]} {[%emt 00:00:07]} 29. Bh5
{[%clk 01:26:21]} {[%emt 00:01:33]} fxg3 {[%clk 00:55:35]} {[%emt 00:01:15]} 30.
fxg3 {[%clk 01:26:15]} {[%emt 00:00:36]} bxa4 {[%clk 00:55:42]} {[%emt
00:00:22]} 31. Qxa4 {[%clk 01:26:21]} {[%emt 00:00:24]} Qd5 {[%clk 00:54:27]}
{[%emt 00:01:45]} 32. Qd1 {[%clk 01:25:43]} {[%emt 00:01:09]} Qg5 {[%clk
00:52:06]} {[%emt 00:02:50]} 33. Qg4 {[%clk 01:24:16]} {[%emt 00:01:57]} Qxg4
{[%clk 00:51:42]} {[%emt 00:00:54]} 34. Bxg4 {[%clk 01:24:42]} {[%emt
00:00:05]} Rb2 {[%clk 00:47:52]} {[%emt 00:04:19]} 35. Rc7 {[%clk 01:24:07]}
{[%emt 00:01:05]} Kf8 {[%clk 00:48:11]} {[%emt 00:00:11]} 36. Rc6 {[%clk
01:24:27]} {[%emt 00:00:11]} a5 {[%clk 00:48:07]} {[%emt 00:00:33]} 37. Ra6
{[%clk 01:24:52]} {[%emt 00:00:07]} Ra2 {[%clk 00:45:26]} {[%emt 00:03:09]} 38.
Kf1 {[%clk 01:23:40]} {[%emt 00:01:42]} a4 {[%clk 00:41:58]} {[%emt 00:03:59]}
39. Be6 {[%clk 01:23:59]} {[%emt 00:00:11]} Ra1+ {[%clk 00:42:16]} {[%emt
00:00:12]} 40. Kf2 {[%clk 01:24:19]} {[%emt 00:00:10]} a3 {[%clk 00:42:40]}
{[%emt 00:00:05]} 41. g4 {[%clk 01:22:56]} {[%emt 00:01:55]} Rd1 {[%clk
00:41:33]} {[%emt 00:01:35]} 42. Ke2 {[%clk 01:23:05]} {[%emt 00:00:21]} Rg1
{[%clk 00:40:43]} {[%emt 00:01:19]} 43. Bd5 {[%emt 00:02:05]} Rb1 {[%clk
00:39:28]} {[%emt 00:00:08]} 44. Kf3 {[%clk 01:23:15]} {[%emt 00:00:24]} Rf1+
{[%clk 00:34:43]} {[%emt 00:05:14]} 45. Ke4 {[%clk 01:19:34]} {[%emt 00:04:11]}
Re1 {[%clk 00:35:01]} {[%emt 00:00:12]} 46. Kd3 {[%clk 01:17:56]} {[%emt
00:02:08]} Rd1+ {[%clk 00:34:34]} {[%emt 00:00:56]} 47. Ke2 {[%clk 01:18:18]}
{[%emt 00:00:09]} Rc1 {[%clk 00:32:29]} {[%emt 00:02:36]} 48. Be4 {[%clk
01:18:15]} {[%emt 00:00:32]} h6 {[%clk 00:31:13]} {[%emt 00:01:46]} 49. Bd5
{[%clk 01:17:35]} {[%emt 00:01:11]} Rc2+ {[%clk 00:30:36]} {[%emt 00:01:07]} 50.
Kd3 {[%clk 01:17:46]} {[%emt 00:00:18]} Rb2 {[%clk 00:28:50]} {[%emt 00:02:16]}
51. g3 {[%clk 01:16:57]} {[%emt 00:01:20]} Rf2 {[%clk 00:28:21]} {[%emt
00:00:58]} 52. Be4 {[%clk 01:14:53]} {[%emt 00:02:35]} Rb2 {[%clk 00:24:02]}
{[%emt 00:04:48]} 53. Bf5 {[%clk 01:14:48]} {[%emt 00:00:36]} Rb1 {[%clk
00:14:11]} {[%emt 00:10:20]} 54. Kc4 {[%clk 01:12:38]} {[%emt 00:02:40]} Re1
{[%clk 00:12:21]} {[%emt 00:02:20]} 55. e4 {[%clk 01:13:02]} {[%emt 00:00:06]}
Rc1+ {[%clk 00:12:27]} {[%emt 00:00:24]} 56. Kd5 {[%clk 01:13:11]} {[%emt
00:00:22]} Kf7 {[%clk 00:12:29]} {[%emt 00:00:27]} 57. Be6+ {[%clk 01:13:35]}
{[%emt 00:00:06]} Kg7 {[%clk 00:12:29]} {[%emt 00:00:30]} 58. Ra7 {[%clk
01:13:56]} {[%emt 00:00:09]} Kf8 {[%clk 00:12:45]} {[%emt 00:00:14]} 59. Bd7
{[%clk 01:13:54]} {[%emt 00:00:33]} Kf7 {[%clk 00:12:50]} {[%emt 00:00:25]} 60.
Bb5 {[%clk 01:14:10]} {[%emt 00:00:13]} Rc2 {[%clk 00:11:50]} {[%emt 00:01:30]}
61. Ra8 {[%clk 01:12:16]} {[%emt 00:02:25]} Bb4 {[%clk 00:09:20]} {[%emt
00:03:00]} 62. Ra7+ {[%clk 01:08:11]} {[%emt 00:04:35]} Be7 {[%clk 00:09:46]}
{[%emt 00:00:04]} 63. Bc4 {[%clk 01:07:39]} {[%emt 00:01:02]} Kf8 {[%clk
00:07:24]} {[%emt 00:02:52]} 64. Ra4 {[%clk 01:07:47]} {[%emt 00:00:22]} Rb2
{[%clk 00:07:07]} {[%emt 00:00:47]} 65. Ke6 {[%clk 01:07:00]} {[%emt 00:01:17]}
Rb6+ {[%clk 00:07:16]} {[%emt 00:00:21]} 66. Kf5 {[%clk 01:07:25]} {[%emt
00:00:05]} Kg7 {[%clk 00:07:11]} {[%emt 00:00:34]} 67. Ra7 {[%clk 01:07:23]}
{[%emt 00:00:33]} Kf8 {[%clk 00:07:24]} {[%emt 00:00:17]} 68. Be6 {[%clk
01:06:52]} {[%emt 00:01:01]} Rb5+ {[%clk 00:07:25]} {[%emt 00:00:28]} 69. d5
{[%clk 01:07:14]} {[%emt 00:00:08]} Rb2 {[%clk 00:06:59]} {[%emt 00:00:56]} 70.
Kg6 {[%clk 01:07:17]} {[%emt 00:00:28]} Bc5 {[%clk 00:07:10]} {[%emt 00:00:18]}
71. Ra5 {[%clk 01:00:26]} {[%emt 00:07:22]} Bb4 {[%clk 00:05:59]} {[%emt
00:01:41]} 72. Ra7 {[%clk 00:50:05]} {[%emt 00:10:51]} Bc5 {[%clk 00:06:26]}
{[%emt 00:00:02]} 73. Rc7 {[%clk 00:46:52]} {[%emt 00:03:43]} a2 {[%clk
00:05:39]} {[%emt 00:01:18]} 74. d6 {[%clk 00:46:30]} {[%emt 00:00:52]} Bxd6
{[%clk 00:05:28]} {[%emt 00:00:42]} 75. Ra7 {[%clk 00:46:59]} Bb8 {[%clk
00:03:46]} {[%emt 00:02:12]} 76. Ra8 {[%clk 00:46:44]} {[%emt 00:00:46]} Ke7
{[%clk 00:04:12]} {[%emt 00:00:02]} 77. Bxa2 {[%clk 00:47:05]} {[%emt
00:00:09]} Bxg3 {[%clk 00:04:28]} {[%emt 00:00:14]} 78. Ra7+ {[%clk 00:47:25]}
{[%emt 00:00:11]} Kd6 {[%clk 00:04:35]} {[%emt 00:00:23]} 79. Kxf6 {[%clk
00:47:48]} {[%emt 00:00:07]} Rf2 {[%clk 00:04:32]} {[%emt 00:00:33]} 80. Kg6
{[%clk 00:48:12]} {[%emt 00:00:05]} Bf4 {[%clk 00:04:40]} {[%emt 00:00:22]} 81.
Bd5 {[%clk 00:47:58]} {[%emt 00:00:45]} Bg5 {[%clk 00:04:56]} {[%emt 00:00:14]}
82. Ra6+ {[%clk 00:48:19]} {[%emt 00:00:09]} Ke5 {[%clk 00:03:57]} {[%emt
00:01:28]} 83. Re6+ {[%clk 00:48:44]} {[%emt 00:00:05]} Kd4 {[%clk 00:04:26]}
{[%emt 00:00:01]} 84. Bc6 {[%clk 00:48:43]} {[%emt 00:00:31]} Rf1 {[%clk
00:04:08]} {[%emt 00:00:49]} 85. Rd6+ {[%clk 00:48:38]} {[%emt 00:00:35]} Ke5
{[%clk 00:03:56]} {[%emt 00:00:42]} 86. Rd5+ {[%clk 00:49:02]} {[%emt
00:00:05]} Ke6 {[%clk 00:04:25]} {[%emt 00:00:02]} 87. Bd7+ {[%clk 00:49:26]}
{[%emt 00:00:05]} Ke7 {[%clk 00:04:51]} {[%emt 00:00:04]} 88. Bf5 {[%clk
00:49:56]} {[%emt 00:00:01]} Ra1 {[%clk 00:04:41]} {[%emt 00:00:27]} 89. Rd7+
{[%clk 00:50:08]} {[%emt 00:00:30]} Ke8 {[%clk 00:05:03]} {[%emt 00:00:08]} 90.
e5 {[%clk 00:50:31]} {[%emt 00:00:07]} Ra5 {[%clk 00:03:35]} {[%emt 00:01:58]}
91. e6 {[%clk 00:50:49]} {[%emt 00:00:13]} Be3 {[%clk 00:03:14]} {[%emt
00:00:51]} 92. Kg7 {[%clk 00:51:07]} {[%emt 00:00:12]} Ra7 {[%clk 00:02:03]}
{[%emt 00:01:41]} 93. Bg6# {[%emt 00:00:05]} 1-0

[Event "The Kvibergspelen 2023"]
[Site "Kviberg Park Hotel & Conference, Krutvagen 2, Gothenburg, Sweden"]
[Date "2023.09.17"]
[Round "8.12"]
[White "Hamark, Jesper"]
[Black "Bjorkman, Filip"]
[Result "1-0"]
[TimeControl "15 minutes + 5 seconds per move from move one (Round 1 - 4) / 90 minutes + 30 seconds per move from move one (Round 5 - 8)"]
[WhiteFideId "1704338"]
[BlackFideId "1734970"]
[WhiteElo "2342"]
[BlackElo "2077"]

1. e4 {[%clk 01:30:51]} {[%emt 00:00:09]} c5 {[%clk 01:30:37]} {[%emt
00:00:23]} 2. Nc3 {[%clk 01:31:15]} {[%emt 00:00:06]} Nc6 {[%clk 01:30:57]}
{[%emt 00:00:10]} 3. Bb5 {[%clk 01:31:39]} {[%emt 00:00:07]} g6 {[%clk
01:29:32]} {[%emt 00:01:53]} 4. Bxc6 {[%clk 01:32:05]} {[%emt 00:00:05]} dxc6
{[%clk 01:29:56]} {[%emt 00:00:05]} 5. d3 {[%clk 01:31:12]} {[%emt 00:01:25]}
e5 {[%clk 01:30:03]} {[%emt 00:00:22]} 6. f4 {[%clk 01:31:27]} {[%emt
00:00:16]} exf4 {[%clk 01:26:40]} {[%emt 00:03:52]} 7. Bxf4 {[%clk 01:31:50]}
{[%emt 00:00:07]} Bg7 {[%clk 01:27:04]} {[%emt 00:00:05]} 8. Nf3 {[%clk
01:32:05]} {[%emt 00:00:16]} Ne7 {[%clk 01:22:46]} {[%emt 00:04:49]} 9. Qd2
{[%clk 01:31:08]} {[%emt 00:01:26]} h6 {[%clk 01:09:47]} {[%emt 00:13:29]} 10.
O-O-O {[%clk 01:26:05]} {[%emt 00:05:33]} Be6 {[%clk 01:02:05]} {[%emt
00:08:12]} 11. Be5 {[%clk 01:23:46]} {[%emt 00:02:49]} O-O {[%clk 01:01:39]}
{[%emt 00:00:56]} 12. Bxg7 {[%clk 01:23:58]} {[%emt 00:00:19]} Kxg7 {[%clk
01:02:06]} {[%emt 00:00:02]} 13. Qf4 {[%clk 01:18:22]} {[%emt 00:06:06]} Qb8
{[%clk 00:50:51]} {[%emt 00:11:43]} 14. Qe3 {[%clk 01:17:43]} {[%emt 00:01:11]}
b6 {[%clk 00:47:45]} {[%emt 00:03:36]} 15. Rhg1 {[%clk 01:14:24]} {[%emt
00:03:48]} Rd8 {[%clk 00:35:59]} {[%emt 00:12:16]} 16. g4 {[%clk 01:08:21]}
{[%emt 00:06:34]} c4 {[%clk 00:33:18]} {[%emt 00:03:12]} 17. dxc4 {[%clk
01:06:57]} {[%emt 00:01:54]} Qc7 {[%clk 00:31:33]} {[%emt 00:02:14]} 18. b3
{[%clk 01:04:18]} {[%emt 00:03:10]} Rxd1+ {[%clk 00:31:16]} {[%emt 00:00:46]}
19. Nxd1 {[%clk 01:03:26]} {[%emt 00:01:22]} Rd8 {[%clk 00:30:49]} {[%emt
00:00:57]} 20. Nc3 {[%clk 00:52:20]} {[%emt 00:11:36]} Qd6 {[%clk 00:29:07]}
{[%emt 00:02:10]} 21. h3 {[%clk 00:49:17]} {[%emt 00:03:34]} Qa3+ {[%clk
00:26:04]} {[%emt 00:03:33]} 22. Kb1 {[%clk 00:49:41]} {[%emt 00:00:07]} Qa5
{[%clk 00:26:30]} {[%emt 00:00:04]} 23. e5 {[%clk 00:44:47]} {[%emt 00:05:24]}
b5 {[%clk 00:24:51]} {[%emt 00:02:09]} 24. Kb2 {[%clk 00:29:15]} {[%emt
00:16:03]} bxc4 {[%clk 00:21:42]} {[%emt 00:03:37]} 25. Nd4 {[%clk 00:26:48]}
{[%emt 00:02:58]} Qb6 {[%clk 00:14:40]} {[%emt 00:07:33]} 26. Rd1 {[%clk
00:25:55]} {[%emt 00:01:22]} Nd5 {[%clk 00:13:08]} {[%emt 00:02:00]} 27. Nxe6+
{[%clk 00:25:21]} {[%emt 00:01:05]} fxe6 {[%clk 00:13:32]} {[%emt 00:00:06]} 28.
Qxb6 {[%clk 00:25:43]} {[%emt 00:00:09]} axb6 {[%clk 00:13:29]} {[%emt
00:00:32]} 29. bxc4 {[%clk 00:26:02]} {[%emt 00:00:11]} 1-0

[Event "The Kvibergspelen 2023"]
[Site "Kviberg Park Hotel & Conference, Krutvagen 2, Gothenburg, Sweden"]
[Date "2023.09.17"]
[Round "8.13"]
[White "Wahlund, Max"]
[Black "Nygren, Kim"]
[Result "1-0"]
[TimeControl "15 minutes + 5 seconds per move from move one (Round 1 - 4) / 90 minutes + 30 seconds per move from move one (Round 5 - 8)"]
[WhiteTitle "CM"]
[BlackTitle "CM"]
[WhiteFideId "1741861"]
[BlackFideId "1706136"]
[WhiteElo "2065"]
[BlackElo "2171"]

1. d4 {[%clk 01:30:57]} {[%emt 00:00:02]} Nf6 {[%clk 01:30:39]} {[%emt
00:00:21]} 2. c4 {[%clk 01:31:25]} {[%emt 00:00:02]} e5 {[%clk 01:26:36]}
{[%emt 00:04:34]} 3. dxe5 {[%clk 01:31:12]} {[%emt 00:00:43]} Ne4 {[%clk
01:26:58]} {[%emt 00:00:08]} 4. a3 {[%clk 01:31:25]} {[%emt 00:00:17]} b6
{[%clk 01:26:44]} {[%emt 00:00:43]} 5. Nf3 {[%clk 01:29:25]} {[%emt 00:02:30]}
Bb7 {[%clk 01:26:38]} {[%emt 00:00:37]} 6. Qc2 {[%clk 01:28:44]} {[%emt
00:01:10]} Bc5 {[%clk 01:21:11]} {[%emt 00:05:57]} 7. e3 {[%clk 01:29:09]}
{[%emt 00:00:06]} a5 {[%clk 01:19:32]} {[%emt 00:02:09]} 8. b3 {[%clk
01:25:00]} {[%emt 00:04:38]} O-O {[%clk 01:14:59]} {[%emt 00:05:03]} 9. Bb2
{[%clk 01:20:25]} {[%emt 00:05:05]} Ng5 {[%clk 01:14:18]} {[%emt 00:01:11]} 10.
Nbd2 {[%clk 01:18:57]} {[%emt 00:01:58]} Ne6 {[%clk 01:08:46]} {[%emt
00:06:01]} 11. Bd3 {[%clk 01:19:01]} {[%emt 00:00:27]} h6 {[%clk 01:08:37]}
{[%emt 00:00:39]} 12. O-O {[%clk 01:14:53]} {[%emt 00:04:38]} Nc6 {[%clk
01:02:29]} {[%emt 00:06:39]} 13. Rfd1 {[%clk 01:11:55]} {[%emt 00:03:28]} Qe7
{[%clk 01:00:31]} {[%emt 00:02:27]} 14. Ne4 {[%clk 01:11:36]} {[%emt 00:00:49]}
Rad8 {[%clk 01:00:35]} {[%emt 00:00:27]} 15. h4 {[%clk 01:06:08]} {[%emt
00:05:58]} d6 {[%clk 00:56:05]} {[%emt 00:04:59]} 16. exd6 {[%clk 01:04:55]}
{[%emt 00:01:43]} Bxd6 {[%clk 00:56:03]} {[%emt 00:00:31]} 17. Nxd6 {[%clk
01:04:37]} {[%emt 00:00:49]} Rxd6 {[%clk 00:54:05]} {[%emt 00:02:28]} 18. Bh7+
{[%clk 01:03:43]} {[%emt 00:01:24]} Kh8 {[%clk 00:54:30]} {[%emt 00:00:05]} 19.
Rxd6 {[%clk 01:04:09]} {[%emt 00:00:04]} cxd6 {[%clk 00:54:34]} {[%emt
00:00:26]} 20. Bf5 {[%clk 01:03:17]} {[%emt 00:01:21]} Ne5 {[%clk 00:51:28]}
{[%emt 00:03:38]} 21. Nxe5 {[%clk 00:56:42]} {[%emt 00:07:04]} dxe5 {[%clk
00:51:45]} {[%emt 00:00:13]} 22. Be4 {[%clk 00:56:00]} {[%emt 00:01:12]} Bc8
{[%clk 00:50:59]} {[%emt 00:01:15]} 23. g3 {[%clk 00:53:42]} {[%emt 00:02:49]}
f5 {[%clk 00:50:44]} {[%emt 00:00:45]} 24. Bg2 {[%clk 00:50:52]} {[%emt
00:03:20]} Nc5 {[%clk 00:47:10]} {[%emt 00:04:04]} 25. Rd1 {[%clk 00:50:20]}
{[%emt 00:01:02]} e4 {[%clk 00:46:12]} {[%emt 00:01:28]} 26. Bd4 {[%clk
00:46:25]} {[%emt 00:04:25]} Kh7 {[%clk 00:44:16]} {[%emt 00:02:26]} 27. b4
{[%clk 00:44:36]} {[%emt 00:02:19]} axb4 {[%clk 00:42:57]} {[%emt 00:01:50]} 28.
axb4 {[%clk 00:44:34]} {[%emt 00:00:32]} Nd3 {[%clk 00:43:22]} {[%emt
00:00:04]} 29. Bxb6 {[%clk 00:43:34]} {[%emt 00:01:30]} Qxb4 {[%clk 00:43:42]}
{[%emt 00:00:11]} 30. Rb1 {[%clk 00:41:54]} {[%emt 00:02:09]} Qe7 {[%clk
00:43:35]} {[%emt 00:00:37]} 31. Bd4 {[%clk 00:41:42]} {[%emt 00:00:42]} f4
{[%clk 00:42:33]} {[%emt 00:01:32]} 32. exf4 {[%clk 00:40:42]} {[%emt
00:01:31]} g5 {[%clk 00:42:47]} {[%emt 00:00:16]} 33. hxg5 {[%clk 00:39:38]}
{[%emt 00:01:34]} Bf5 {[%clk 00:41:58]} {[%emt 00:01:19]} 34. Bf6 {[%clk
00:36:30]} {[%emt 00:03:38]} Qa7 {[%clk 00:40:24]} {[%emt 00:02:04]} 35. Rb5
{[%clk 00:36:13]} {[%emt 00:00:47]} Ne1 {[%clk 00:32:48]} {[%emt 00:08:06]} 36.
Qb1 {[%clk 00:34:42]} {[%emt 00:02:02]} 1-0

[Event "The Kvibergspelen 2023"]
[Site "Kviberg Park Hotel & Conference, Krutvagen 2, Gothenburg, Sweden"]
[Date "2023.09.17"]
[Round "8.14"]
[White "Frisk, Ellinor"]
[Black "Eriksson, Kristian"]
[Result "1-0"]
[TimeControl "15 minutes + 5 seconds per move from move one (Round 1 - 4) / 90 minutes + 30 seconds per move from move one (Round 5 - 8)"]
[WhiteTitle "WIM"]
[WhiteFideId "1708481"]
[BlackFideId "1705172"]
[WhiteElo "2166"]
[BlackElo "2038"]

1. c4 {[%clk 01:30:57]} {[%emt 00:00:03]} e5 {[%clk 01:30:44]} {[%emt
00:00:15]} 2. e3 {[%clk 01:31:17]} {[%emt 00:00:11]} Nf6 {[%clk 01:30:21]}
{[%emt 00:00:52]} 3. Nc3 {[%clk 01:31:30]} {[%emt 00:00:19]} Nc6 {[%clk
01:29:12]} {[%emt 00:01:38]} 4. Nf3 {[%clk 01:31:32]} {[%emt 00:00:28]} Bb4
{[%clk 01:27:59]} {[%emt 00:01:43]} 5. Qc2 {[%clk 01:31:55]} {[%emt 00:00:07]}
O-O {[%clk 01:26:44]} {[%emt 00:01:46]} 6. Nd5 {[%clk 01:31:52]} {[%emt
00:00:32]} Re8 {[%clk 01:24:54]} {[%emt 00:02:20]} 7. Qf5 {[%clk 01:31:45]}
{[%emt 00:00:38]} d6 {[%clk 01:23:20]} {[%emt 00:02:03]} 8. Nxf6+ {[%clk
01:32:06]} {[%emt 00:00:10]} Qxf6 {[%clk 01:23:38]} {[%emt 00:00:12]} 9. Qxf6
{[%clk 01:32:20]} {[%emt 00:00:17]} gxf6 {[%clk 01:24:04]} {[%emt 00:00:03]} 10.
a3 {[%clk 01:32:38]} {[%emt 00:00:12]} Bc5 {[%clk 01:23:30]} {[%emt 00:01:03]}
11. b4 {[%clk 01:32:46]} {[%emt 00:00:23]} Bb6 {[%clk 01:23:53]} {[%emt
00:00:07]} 12. Bb2 {[%clk 01:33:10]} {[%emt 00:00:06]} a5 {[%clk 01:22:04]}
{[%emt 00:02:19]} 13. b5 {[%clk 01:33:17]} {[%emt 00:00:24]} Ne7 {[%clk
01:18:30]} {[%emt 00:04:02]} 14. d4 {[%clk 01:14:34]} {[%emt 00:19:13]} c5
{[%clk 01:09:40]} {[%emt 00:09:20]} 15. d5 {[%clk 01:07:30]} {[%emt 00:07:34]}
Bf5 {[%clk 01:04:27]} {[%emt 00:05:43]} 16. a4 {[%clk 01:04:12]} {[%emt
00:03:49]} Bg6 {[%clk 01:00:12]} {[%emt 00:04:44]} 17. h4 {[%clk 01:01:11]}
{[%emt 00:03:31]} h5 {[%clk 00:59:36]} {[%emt 00:01:06]} 18. Nd2 {[%clk
01:00:32]} {[%emt 00:01:11]} Bd8 {[%clk 00:56:02]} {[%emt 00:04:03]} 19. f3
{[%clk 00:58:39]} {[%emt 00:02:22]} Nf5 {[%clk 00:52:39]} {[%emt 00:03:53]} 20.
Kf2 {[%clk 00:58:22]} {[%emt 00:00:47]} Be7 {[%clk 00:51:52]} {[%emt 00:01:18]}
21. Be2 {[%clk 00:48:02]} {[%emt 00:10:50]} Nh6 {[%clk 00:47:56]} {[%emt
00:04:25]} 22. g4 {[%clk 00:35:47]} {[%emt 00:12:46]} Kh8 {[%clk 00:43:27]}
{[%emt 00:04:59]} 23. e4 {[%clk 00:32:35]} {[%emt 00:03:42]} b6 {[%clk
00:40:25]} {[%emt 00:03:32]} 24. Rag1 {[%clk 00:32:31]} {[%emt 00:00:33]} hxg4
{[%clk 00:31:52]} {[%emt 00:09:03]} 25. fxg4 {[%clk 00:32:45]} {[%emt
00:00:16]} Bh7 {[%clk 00:31:09]} {[%emt 00:01:13]} 26. g5 {[%clk 00:26:36]}
{[%emt 00:06:40]} Ng8 {[%clk 00:30:13]} {[%emt 00:01:25]} 27. Bg4 {[%clk
00:21:54]} {[%emt 00:05:13]} fxg5 {[%clk 00:20:14]} {[%emt 00:10:29]} 28. hxg5
{[%clk 00:22:16]} {[%emt 00:00:07]} Kg7 {[%clk 00:20:39]} {[%emt 00:00:05]} 29.
Bf5 {[%clk 00:19:50]} {[%emt 00:02:58]} Bg6 {[%clk 00:19:22]} {[%emt 00:01:47]}
30. Nf3 {[%clk 00:19:08]} {[%emt 00:01:11]} Bd8 {[%clk 00:18:39]} {[%emt
00:01:13]} 31. Ke3 {[%clk 00:15:56]} {[%emt 00:03:42]} Ne7 {[%clk 00:15:53]}
{[%emt 00:03:16]} 32. Bd7 {[%clk 00:16:13]} {[%emt 00:00:13]} Rg8 {[%clk
00:13:30]} {[%emt 00:02:53]} 33. Nxe5 {[%clk 00:11:09]} {[%emt 00:05:33]} dxe5
{[%clk 00:13:46]} {[%emt 00:00:14]} 34. Bxe5+ {[%clk 00:11:38]} {[%emt
00:00:01]} Kf8 {[%clk 00:13:45]} {[%emt 00:00:30]} 35. d6 {[%clk 00:07:43]}
{[%emt 00:04:26]} Nc8 {[%clk 00:09:49]} {[%emt 00:04:26]} 36. Kf4 {[%clk
00:06:38]} {[%emt 00:01:36]} f6 {[%clk 00:07:48]} {[%emt 00:02:30]} 37. gxf6
{[%clk 00:06:41]} {[%emt 00:00:28]} Bf7 {[%clk 00:07:00]} {[%emt 00:01:18]} 38.
Bc6 {[%clk 00:05:42]} {[%emt 00:01:29]} Rxg1 {[%clk 00:04:38]} {[%emt
00:02:51]} 39. Rxg1 {[%clk 00:06:07]} {[%emt 00:00:05]} Ra7 {[%clk 00:04:17]}
{[%emt 00:00:51]} 40. d7 {[%clk 00:06:01]} {[%emt 00:00:37]} Ne7 {[%clk
00:04:23]} {[%emt 00:00:23]} 41. Bd6 {[%clk 00:05:50]} {[%emt 00:00:41]} 1-0